[Event "*** Titled Tuesday Blitz"]
[Site "Chess.com"]
[Date "2020.11.24"]
[Round "11"]
[White "HouseOfDurin"]
[Black "MasterMK73"]
[Result "0-1"]
[WhiteElo "2115"]
[BlackElo "2257"]
[TimeControl "180+1"]
[EndTime "12:26:40 PST"]
[Termination "MasterMK73 won by checkmate"]

1. d4 {[%clk 0:03:00.9]} 1... d5 {[%clk 0:02:31.6]} 2. Bg5 {[%clk 0:03:01]} 2...
h6 {[%clk 0:02:28.8]} 3. Bh4 {[%clk 0:03:00.6]} 3... c6 {[%clk 0:02:28.8]} 4. e3
{[%clk 0:03:00]} 4... Qb6 {[%clk 0:02:27.8]} 5. b3 {[%clk 0:02:59.6]} 5... e5
{[%clk 0:02:27.7]} 6. Bg3 {[%clk 0:02:50.9]} 6... exd4 {[%clk 0:02:23]} 7. exd4
{[%clk 0:02:49.2]} 7... Nf6 {[%clk 0:02:16.6]} 8. Bd3 {[%clk 0:02:47.2]} 8...
Be7 {[%clk 0:02:13.2]} 9. Nd2 {[%clk 0:02:41]} 9... Qxd4 {[%clk 0:02:10.4]} 10.
Ngf3 {[%clk 0:02:36.5]} 10... Qb6 {[%clk 0:02:05.9]} 11. O-O {[%clk 0:02:31.2]}
11... O-O {[%clk 0:02:05.5]} 12. c4 {[%clk 0:02:29.3]} 12... Be6 {[%clk
0:02:02]} 13. cxd5 {[%clk 0:02:21.6]} 13... cxd5 {[%clk 0:02:00.5]} 14. Re1
{[%clk 0:02:06.9]} 14... Nc6 {[%clk 0:01:59.2]} 15. a3 {[%clk 0:01:49.7]} 15...
a5 {[%clk 0:01:56]} 16. Bf4 {[%clk 0:01:23.8]} 16... Rad8 {[%clk 0:01:47.8]} 17.
Qc2 {[%clk 0:01:12.3]} 17... Rc8 {[%clk 0:01:41.6]} 18. Qb2 {[%clk 0:01:05.7]}
18... Nd7 {[%clk 0:01:29.5]} 19. Rac1 {[%clk 0:01:01.3]} 19... Bf6 {[%clk
0:01:25.3]} 20. Qa2 {[%clk 0:00:56.4]} 20... Nc5 {[%clk 0:01:18.3]} 21. Bf1
{[%clk 0:00:50.7]} 21... g5 {[%clk 0:01:09.1]} 22. Bd6 {[%clk 0:00:50]} 22...
Ne7 {[%clk 0:00:56.4]} 23. Be5 {[%clk 0:00:31]} 23... Bxe5 {[%clk 0:00:47.2]}
24. Nxe5 {[%clk 0:00:31.9]} 24... Nf5 {[%clk 0:00:18.7]} 25. Ndf3 {[%clk
0:00:20.3]} 25... Ne4 {[%clk 0:00:18]} 26. Rxc8 {[%clk 0:00:15.4]} 26... Rxc8
{[%clk 0:00:17]} 27. h4 {[%clk 0:00:10.8]} 27... g4 {[%clk 0:00:16.3]} 28. Nh2
{[%clk 0:00:07]} 28... g3 {[%clk 0:00:15.8]} 29. Nhg4 {[%clk 0:00:06.5]} 29...
gxf2+ {[%clk 0:00:15.2]} 30. Nxf2 {[%clk 0:00:07.4]} 30... Nfg3 {[%clk
0:00:14.4]} 31. Nd3 {[%clk 0:00:04.6]} 31... Rc3 {[%clk 0:00:13]} 32. Qb1 {[%clk
0:00:03.1]} 32... Rxb3 {[%clk 0:00:12.4]} 33. Qc1 {[%clk 0:00:03.6]} 33... Rc3
{[%clk 0:00:12.1]} 34. Qxh6 {[%clk 0:00:03.5]} 34... Qd8 {[%clk 0:00:09.1]} 35.
Qf4 {[%clk 0:00:03.5]} 35... Qf6 {[%clk 0:00:08.2]} 36. Qxf6 {[%clk 0:00:03.1]}
36... Nxf6 {[%clk 0:00:08.2]} 37. Nf4 {[%clk 0:00:02.9]} 37... Rxa3 {[%clk
0:00:07.5]} 38. Nxe6 {[%clk 0:00:02.7]} 38... fxe6 {[%clk 0:00:07.4]} 39. Rxe6
{[%clk 0:00:03.4]} 39... Kf7 {[%clk 0:00:08.1]} 40. Re1 {[%clk 0:00:03]} 40...
Ra2 {[%clk 0:00:06.6]} 41. Nd3 {[%clk 0:00:03.6]} 41... Nge4 {[%clk 0:00:05.9]}
42. Ne5+ {[%clk 0:00:04.1]} 42... Ke6 {[%clk 0:00:06.2]} 43. Nf3 {[%clk
0:00:04.5]} 43... Kd6 {[%clk 0:00:05.8]} 44. Bd3 {[%clk 0:00:05]} 44... b6
{[%clk 0:00:04.5]} 45. h5 {[%clk 0:00:05.3]} 45... Kc5 {[%clk 0:00:04.1]} 46. h6
{[%clk 0:00:04.6]} 46... Ra3 {[%clk 0:00:03.6]} 47. Bb1 {[%clk 0:00:03.8]} 47...
Rb3 {[%clk 0:00:03.2]} 48. Bc2 {[%clk 0:00:03.5]} 48... Rb2 {[%clk 0:00:03]} 49.
Bd3 {[%clk 0:00:03.3]} 49... Rb3 {[%clk 0:00:02.5]} 50. Bc2 {[%clk 0:00:03.2]}
50... Rb2 {[%clk 0:00:02.7]} 51. Bd3 {[%clk 0:00:03.2]} 51... a4 {[%clk
0:00:03]} 52. Bxe4 {[%clk 0:00:03]} 52... dxe4 {[%clk 0:00:02.6]} 53. Ng5 {[%clk
0:00:02]} 53... a3 {[%clk 0:00:01.5]} 54. Nxe4+ {[%clk 0:00:02.6]} 54... Nxe4
{[%clk 0:00:01.5]} 55. Rxe4 {[%clk 0:00:03.5]} 55... a2 {[%clk 0:00:02]} 56. Ra4
{[%clk 0:00:03.5]} 56... Rb1+ {[%clk 0:00:02]} 57. Kh2 {[%clk 0:00:03.9]} 57...
a1=Q {[%clk 0:00:02]} 58. Rxa1 {[%clk 0:00:04.4]} 58... Rxa1 {[%clk 0:00:02.6]}
59. h7 {[%clk 0:00:04.9]} 59... Ra8 {[%clk 0:00:03.3]} 60. g4 {[%clk 0:00:05.6]}
60... Rh8 {[%clk 0:00:03.8]} 61. g5 {[%clk 0:00:06.5]} 61... Rxh7+ {[%clk
0:00:04.2]} 62. Kg3 {[%clk 0:00:07.4]} 62... Rg7 {[%clk 0:00:04.6]} 63. Kg4
{[%clk 0:00:08.3]} 63... Kd5 {[%clk 0:00:05]} 64. Kf5 {[%clk 0:00:09.2]} 64...
Kd6 {[%clk 0:00:04]} 65. Kf6 {[%clk 0:00:09.5]} 65... Rxg5 {[%clk 0:00:04.6]}
66. Kxg5 {[%clk 0:00:09.5]} 66... Kd5 {[%clk 0:00:05.3]} 67. Kf4 {[%clk
0:00:10.4]} 67... Kd4 {[%clk 0:00:05.3]} 68. Kf3 {[%clk 0:00:10.6]} 68... Kd3
{[%clk 0:00:05.6]} 69. Kf2 {[%clk 0:00:09.3]} 69... Kd2 {[%clk 0:00:05.7]} 70.
Kf3 {[%clk 0:00:09.7]} 70... b5 {[%clk 0:00:06.3]} 71. Ke4 {[%clk 0:00:10.6]}
71... b4 {[%clk 0:00:06.6]} 72. Kd4 {[%clk 0:00:11.5]} 72... b3 {[%clk
0:00:07.1]} 73. Kc4 {[%clk 0:00:12.4]} 73... b2 {[%clk 0:00:07.6]} 74. Kb3
{[%clk 0:00:13.3]} 74... b1=Q+ {[%clk 0:00:07.7]} 75. Kc4 {[%clk 0:00:14.2]}
75... Qb6 {[%clk 0:00:07.3]} 76. Kd5 {[%clk 0:00:14.2]} 76... Kd3 {[%clk
0:00:08.2]} 77. Ke5 {[%clk 0:00:14.3]} 77... Qb5+ {[%clk 0:00:08.7]} 78. Kf4
{[%clk 0:00:14.8]} 78... Kd4 {[%clk 0:00:08.8]} 79. Kf3 {[%clk 0:00:15.1]} 79...
Qf5+ {[%clk 0:00:08.9]} 80. Ke2 {[%clk 0:00:14.9]} 80... Qh3 {[%clk 0:00:09]}
81. Kf2 {[%clk 0:00:15.8]} 81... Ke4 {[%clk 0:00:08.3]} 82. Ke2 {[%clk
0:00:16.2]} 82... Qh2+ {[%clk 0:00:08.5]} 83. Kd1 {[%clk 0:00:16.2]} 83... Kd3
{[%clk 0:00:08.6]} 84. Kc1 {[%clk 0:00:17.1]} 84... Qc2# {[%clk 0:00:08.4]} 0-1

[Event "*** Titled Tuesday Blitz"]
[Site "Chess.com"]
[Date "2020.11.24"]
[Round "11"]
[White "elcandado"]
[Black "J36225"]
[Result "1-0"]
[WhiteElo "2660"]
[BlackElo "2510"]
[TimeControl "180+1"]
[EndTime "12:26:47 PST"]
[Termination "elcandado won by checkmate"]

1. d4 {[%clk 0:03:00.9]} 1... Nf6 {[%clk 0:02:59]} 2. Bf4 {[%clk 0:03:01.2]}
2... e6 {[%clk 0:02:58]} 3. e3 {[%clk 0:03:00.8]} 3... d5 {[%clk 0:02:58.1]} 4.
Nd2 {[%clk 0:03:00.3]} 4... Bd6 {[%clk 0:02:58.2]} 5. Bg3 {[%clk 0:03:00.3]}
5... O-O {[%clk 0:02:57.6]} 6. Bd3 {[%clk 0:03:00.2]} 6... c5 {[%clk 0:02:57.4]}
7. c3 {[%clk 0:03:00]} 7... Qc7 {[%clk 0:02:57.2]} 8. dxc5 {[%clk 0:02:59.6]}
8... Qxc5 {[%clk 0:02:56]} 9. Ngf3 {[%clk 0:02:59]} 9... Nbd7 {[%clk 0:02:52]}
10. e4 {[%clk 0:02:57.1]} 10... Qc7 {[%clk 0:02:44.7]} 11. Qe2 {[%clk
0:02:56.1]} 11... dxe4 {[%clk 0:02:38.6]} 12. Bxe4 {[%clk 0:02:49.2]} 12... Nc5
{[%clk 0:02:19.5]} 13. Rd1 {[%clk 0:02:38.2]} 13... Ncxe4 {[%clk 0:02:16.9]} 14.
Nxe4 {[%clk 0:02:37.6]} 14... Nxe4 {[%clk 0:02:16.8]} 15. Qxe4 {[%clk 0:02:37]}
15... Bxg3 {[%clk 0:02:09]} 16. hxg3 {[%clk 0:02:36.4]} 16... h6 {[%clk
0:02:05]} 17. Ne5 {[%clk 0:02:24.5]} 17... b6 {[%clk 0:01:49.6]} 18. O-O {[%clk
0:01:35.2]} 18... Bb7 {[%clk 0:01:45.5]} 19. Qf4 {[%clk 0:01:25.7]} 19... Rad8
{[%clk 0:01:40.3]} 20. f3 {[%clk 0:01:13.9]} 20... f6 {[%clk 0:01:33.2]} 21. Ng6
{[%clk 0:01:08.9]} 21... Qxf4 {[%clk 0:01:31.3]} 22. Nxf4 {[%clk 0:01:06.1]}
22... Kf7 {[%clk 0:01:29.6]} 23. Kf2 {[%clk 0:01:01.6]} 23... e5 {[%clk
0:01:28.5]} 24. Ne2 {[%clk 0:00:57.5]} 24... Ba6 {[%clk 0:01:26.1]} 25. Rfe1
{[%clk 0:00:56.9]} 25... Bxe2 {[%clk 0:01:19.7]} 26. Kxe2 {[%clk 0:00:56.6]}
26... Ke6 {[%clk 0:01:16.6]} 27. g4 {[%clk 0:00:55.4]} 27... b5 {[%clk
0:01:09.2]} 28. Rd3 {[%clk 0:00:44.6]} 28... Rxd3 {[%clk 0:01:07.6]} 29. Kxd3
{[%clk 0:00:45.5]} 29... Rd8+ {[%clk 0:01:08]} 30. Ke3 {[%clk 0:00:42.7]} 30...
a6 {[%clk 0:01:07]} 31. Ra1 {[%clk 0:00:41.6]} 31... Rb8 {[%clk 0:00:58.8]} 32.
Kd3 {[%clk 0:00:37.2]} 32... Rd8+ {[%clk 0:00:57.6]} 33. Kc2 {[%clk 0:00:37.1]}
33... g5 {[%clk 0:00:35.1]} 34. a4 {[%clk 0:00:34.4]} 34... e4 {[%clk
0:00:32.4]} 35. axb5 {[%clk 0:00:33]} 35... axb5 {[%clk 0:00:29.8]} 36. Re1
{[%clk 0:00:30.5]} 36... f5 {[%clk 0:00:23.9]} 37. gxf5+ {[%clk 0:00:29.9]}
37... Kxf5 {[%clk 0:00:24.8]} 38. Rxe4 {[%clk 0:00:29.5]} 38... h5 {[%clk
0:00:23.4]} 39. Rd4 {[%clk 0:00:26.5]} 39... Rb8 {[%clk 0:00:23]} 40. Rb4 {[%clk
0:00:21.4]} 40... h4 {[%clk 0:00:19.7]} 41. Kd3 {[%clk 0:00:20.5]} 41... Rd8+
{[%clk 0:00:19.2]} 42. Ke2 {[%clk 0:00:20.1]} 42... Rd5 {[%clk 0:00:18.9]} 43.
Rd4 {[%clk 0:00:19.2]} 43... Re5+ {[%clk 0:00:18.6]} 44. Kf2 {[%clk 0:00:17.7]}
44... Rc5 {[%clk 0:00:16.9]} 45. Ke3 {[%clk 0:00:15.9]} 45... Re5+ {[%clk
0:00:16.8]} 46. Re4 {[%clk 0:00:15.9]} 46... Rd5 {[%clk 0:00:16.6]} 47. Rd4
{[%clk 0:00:12.2]} 47... Re5+ {[%clk 0:00:16.8]} 48. Kf2 {[%clk 0:00:12.3]}
48... Rc5 {[%clk 0:00:16]} 49. Kg1 {[%clk 0:00:11.7]} 49... Re5 {[%clk
0:00:15.7]} 50. Kh2 {[%clk 0:00:11.8]} 50... Rc5 {[%clk 0:00:14.8]} 51. Kh3
{[%clk 0:00:12]} 51... Re5 {[%clk 0:00:14.3]} 52. Rb4 {[%clk 0:00:10.9]} 52...
Rc5 {[%clk 0:00:14.1]} 53. g3 {[%clk 0:00:10.7]} 53... hxg3 {[%clk 0:00:13.1]}
54. Kxg3 {[%clk 0:00:11.6]} 54... Re5 {[%clk 0:00:13.6]} 55. Kf2 {[%clk
0:00:11.4]} 55... Rc5 {[%clk 0:00:13.5]} 56. Ke3 {[%clk 0:00:11.4]} 56... Rd5
{[%clk 0:00:13.9]} 57. Rd4 {[%clk 0:00:11.3]} 57... Re5+ {[%clk 0:00:14.1]} 58.
Kd3 {[%clk 0:00:11.2]} 58... Rc5 {[%clk 0:00:14.3]} 59. b3 {[%clk 0:00:10.2]}
59... Re5 {[%clk 0:00:13.2]} 60. c4 {[%clk 0:00:09.7]} 60... bxc4+ {[%clk
0:00:13.4]} 61. bxc4 {[%clk 0:00:09.5]} 61... Re1 {[%clk 0:00:14]} 62. c5 {[%clk
0:00:07.4]} 62... Rd1+ {[%clk 0:00:11.1]} 63. Kc4 {[%clk 0:00:07.1]} 63... Rc1+
{[%clk 0:00:10.5]} 64. Kd5 {[%clk 0:00:07]} 64... Rc2 {[%clk 0:00:09.9]} 65. c6
{[%clk 0:00:06.6]} 65... Rc1 {[%clk 0:00:09.4]} 66. Rc4 {[%clk 0:00:05.3]} 66...
Rd1+ {[%clk 0:00:09.9]} 67. Kc5 {[%clk 0:00:05]} 67... Rd8 {[%clk 0:00:10.8]}
68. c7 {[%clk 0:00:04.8]} 68... Rc8 {[%clk 0:00:11.1]} 69. Kc6 {[%clk
0:00:05.2]} 69... Ke6 {[%clk 0:00:11.5]} 70. Kb7 {[%clk 0:00:05.1]} 70... Rf8
{[%clk 0:00:10.3]} 71. c8=Q+ {[%clk 0:00:04.6]} 71... Rxc8 {[%clk 0:00:10.3]}
72. Kxc8 {[%clk 0:00:04.7]} 72... Kd5 {[%clk 0:00:11.2]} 73. Rg4 {[%clk
0:00:04.2]} 73... Ke5 {[%clk 0:00:11.7]} 74. Rxg5+ {[%clk 0:00:05.1]} 74... Kf4
{[%clk 0:00:12.6]} 75. Rg8 {[%clk 0:00:05.2]} 75... Kxf3 {[%clk 0:00:13.5]} 76.
Kd7 {[%clk 0:00:05.4]} 76... Ke4 {[%clk 0:00:14.4]} 77. Ke6 {[%clk 0:00:05.7]}
77... Kd3 {[%clk 0:00:15.3]} 78. Rf8 {[%clk 0:00:05.9]} 78... Kc4 {[%clk
0:00:16.2]} 79. Rf5 {[%clk 0:00:06.1]} 79... Kb3 {[%clk 0:00:16.9]} 80. Kd5
{[%clk 0:00:05.7]} 80... Kc2 {[%clk 0:00:17.8]} 81. Rf4 {[%clk 0:00:05.8]} 81...
Kd3 {[%clk 0:00:18.7]} 82. Re4 {[%clk 0:00:06.5]} 82... Kd2 {[%clk 0:00:18.8]}
83. Kd4 {[%clk 0:00:06.5]} 83... Kc2 {[%clk 0:00:19.7]} 84. Re3 {[%clk
0:00:06.7]} 84... Kd2 {[%clk 0:00:19.7]} 85. Rh3 {[%clk 0:00:05.8]} 85... Kc2
{[%clk 0:00:20.6]} 86. Rg3 {[%clk 0:00:05.5]} 86... Kd2 {[%clk 0:00:20.4]} 87.
Rg2+ {[%clk 0:00:05.6]} 87... Kd1 {[%clk 0:00:21.1]} 88. Ke3 {[%clk 0:00:05.5]}
88... Ke1 {[%clk 0:00:22]} 89. Rg1# {[%clk 0:00:05]} 1-0

[Event "*** Titled Tuesday Blitz"]
[Site "Chess.com"]
[Date "2020.11.24"]
[Round "11"]
[White "MillyNeuf"]
[Black "tan275"]
[Result "0-1"]
[WhiteElo "2345"]
[BlackElo "2203"]
[TimeControl "180+1"]
[EndTime "12:26:52 PST"]
[Termination "tan275 won by checkmate"]

1. e4 {[%clk 0:03:00.9]} 1... c6 {[%clk 0:02:58]} 2. Nc3 {[%clk 0:03:00.4]} 2...
d5 {[%clk 0:02:58]} 3. Nf3 {[%clk 0:03:01]} 3... Nf6 {[%clk 0:02:58.1]} 4. e5
{[%clk 0:03:00.1]} 4... Ne4 {[%clk 0:02:58.3]} 5. Be2 {[%clk 0:02:31.4]} 5...
Nxc3 {[%clk 0:02:55.4]} 6. dxc3 {[%clk 0:02:27.2]} 6... c5 {[%clk 0:02:55]} 7.
O-O {[%clk 0:02:24]} 7... Nc6 {[%clk 0:02:52.8]} 8. Bf4 {[%clk 0:02:22]} 8... g6
{[%clk 0:02:52.4]} 9. Qd2 {[%clk 0:02:17.9]} 9... Bg7 {[%clk 0:02:52.4]} 10.
Rfe1 {[%clk 0:02:07.5]} 10... O-O {[%clk 0:02:48.4]} 11. Bh6 {[%clk 0:02:07.4]}
11... Bg4 {[%clk 0:02:46.2]} 12. Bxg7 {[%clk 0:02:07.3]} 12... Kxg7 {[%clk
0:02:46.4]} 13. h3 {[%clk 0:02:07.5]} 13... Bxf3 {[%clk 0:02:43.7]} 14. Bxf3
{[%clk 0:02:08.4]} 14... e6 {[%clk 0:02:43.6]} 15. Qf4 {[%clk 0:02:03.9]} 15...
Qe7 {[%clk 0:02:33.3]} 16. h4 {[%clk 0:02:02.8]} 16... h6 {[%clk 0:02:27.6]} 17.
g3 {[%clk 0:01:55.1]} 17... g5 {[%clk 0:02:23.3]} 18. hxg5 {[%clk 0:01:52]}
18... Qxg5 {[%clk 0:02:14.8]} 19. Qxg5+ {[%clk 0:01:42.6]} 19... hxg5 {[%clk
0:02:15.7]} 20. Kg2 {[%clk 0:01:40.2]} 20... Rh8 {[%clk 0:02:15]} 21. Bg4 {[%clk
0:01:33.1]} 21... Rh6 {[%clk 0:02:13.7]} 22. f4 {[%clk 0:01:07.3]} 22... Rah8
{[%clk 0:02:05.3]} 23. Rh1 {[%clk 0:01:06.4]} 23... gxf4 {[%clk 0:01:42.5]} 24.
gxf4 {[%clk 0:01:06.4]} 24... Rg6 {[%clk 0:01:37.1]} 25. Kf3 {[%clk 0:01:02.2]}
25... Rxh1 {[%clk 0:01:33.6]} 26. Rxh1 {[%clk 0:01:03.1]} 26... d4 {[%clk
0:01:15.8]} 27. Rd1 {[%clk 0:00:40.6]} 27... Rh6 {[%clk 0:01:06.9]} 28. Kg3
{[%clk 0:00:36.5]} 28... b6 {[%clk 0:01:03.4]} 29. cxd4 {[%clk 0:00:32.2]} 29...
Nxd4 {[%clk 0:00:57.5]} 30. c3 {[%clk 0:00:32.7]} 30... Nc2 {[%clk 0:00:46.9]}
31. Rd2 {[%clk 0:00:22.4]} 31... Ne3 {[%clk 0:00:45.7]} 32. Kf3 {[%clk
0:00:18.3]} 32... Nf1 {[%clk 0:00:32.6]} 33. Rf2 {[%clk 0:00:14]} 33... Nh2+
{[%clk 0:00:32.2]} 34. Kg3 {[%clk 0:00:13.4]} 34... Nxg4 {[%clk 0:00:31.5]} 35.
Kxg4 {[%clk 0:00:14.3]} 35... Rh1 {[%clk 0:00:31.5]} 36. Rd2 {[%clk 0:00:13.9]}
36... Rb1 {[%clk 0:00:31.3]} 37. a3 {[%clk 0:00:12.1]} 37... c4 {[%clk
0:00:29.3]} 38. Kf3 {[%clk 0:00:09.6]} 38... Kg6 {[%clk 0:00:29.1]} 39. Ke4
{[%clk 0:00:10.1]} 39... b5 {[%clk 0:00:27.3]} 40. Rg2+ {[%clk 0:00:10.5]} 40...
Kh6 {[%clk 0:00:24.2]} 41. Kd4 {[%clk 0:00:11]} 41... Rf1 {[%clk 0:00:15.8]} 42.
Ke4 {[%clk 0:00:09]} 42... Re1+ {[%clk 0:00:14.8]} 43. Kd4 {[%clk 0:00:08.9]}
43... Rf1 {[%clk 0:00:15]} 44. Kc5 {[%clk 0:00:09.5]} 44... Rxf4 {[%clk
0:00:14.6]} 45. Kxb5 {[%clk 0:00:09.8]} 45... Re4 {[%clk 0:00:14.3]} 46. Kc5
{[%clk 0:00:08.6]} 46... Rxe5+ {[%clk 0:00:13.8]} 47. Kxc4 {[%clk 0:00:09]}
47... f5 {[%clk 0:00:13.9]} 48. b4 {[%clk 0:00:07.8]} 48... f4 {[%clk 0:00:14]}
49. Kd4 {[%clk 0:00:08]} 49... Re1 {[%clk 0:00:13.2]} 50. c4 {[%clk 0:00:08.5]}
50... e5+ {[%clk 0:00:11.4]} 51. Kd5 {[%clk 0:00:07]} 51... f3 {[%clk
0:00:10.6]} 52. Rf2 {[%clk 0:00:06.9]} 52... e4 {[%clk 0:00:10.6]} 53. c5 {[%clk
0:00:07.3]} 53... Re2 {[%clk 0:00:09.2]} 54. Rf1 {[%clk 0:00:05.3]} 54... f2
{[%clk 0:00:08.3]} 55. c6 {[%clk 0:00:05.2]} 55... e3 {[%clk 0:00:08.5]} 56. c7
{[%clk 0:00:05.6]} 56... Rc2 {[%clk 0:00:08.6]} 57. Kd6 {[%clk 0:00:03.5]} 57...
e2 {[%clk 0:00:07.5]} 58. Rxf2 {[%clk 0:00:03.4]} 58... e1=Q {[%clk 0:00:06.5]}
59. Rxc2 {[%clk 0:00:02.4]} 59... Qd1+ {[%clk 0:00:06.7]} 60. Ke7 {[%clk
0:00:02.3]} 60... Qxc2 {[%clk 0:00:07.2]} 61. Kd8 {[%clk 0:00:02.5]} 61... Qd3+
{[%clk 0:00:07.5]} 62. Kc8 {[%clk 0:00:03]} 62... Qc4 {[%clk 0:00:06.7]} 63. Kb8
{[%clk 0:00:03.1]} 63... Qb5+ {[%clk 0:00:05.8]} 64. Kc8 {[%clk 0:00:03.6]}
64... Qa6+ {[%clk 0:00:05]} 65. Kd8 {[%clk 0:00:03.7]} 65... Qd6+ {[%clk
0:00:04.2]} 66. Kc8 {[%clk 0:00:04.2]} 66... a6 {[%clk 0:00:04.6]} 67. Kb7
{[%clk 0:00:04.9]} 67... Qd7 {[%clk 0:00:04.1]} 68. Kb8 {[%clk 0:00:04.9]} 68...
Qb5+ {[%clk 0:00:03.6]} 69. Kc8 {[%clk 0:00:04.1]} 69... Kg6 {[%clk 0:00:03.2]}
70. Kd8 {[%clk 0:00:04.5]} 70... Qd5+ {[%clk 0:00:02.7]} 71. Kc8 {[%clk
0:00:04]} 71... Kf6 {[%clk 0:00:02.6]} 72. Kb8 {[%clk 0:00:04]} 72... Qb5+
{[%clk 0:00:02.5]} 73. Ka7 {[%clk 0:00:04.3]} 73... Qc6 {[%clk 0:00:02.3]} 74.
Kb8 {[%clk 0:00:04.6]} 74... Qb6+ {[%clk 0:00:02.7]} 75. Kc8 {[%clk 0:00:03.9]}
75... Ke6 {[%clk 0:00:03]} 76. Kd8 {[%clk 0:00:04.1]} 76... Kd6 {[%clk
0:00:01.8]} 77. Ke8 {[%clk 0:00:03]} 77... Qxc7 {[%clk 0:00:02.7]} 78. Kf8
{[%clk 0:00:02.4]} 78... Qe7+ {[%clk 0:00:03.6]} 79. Kg8 {[%clk 0:00:03.3]}
79... Ke6 {[%clk 0:00:04.3]} 80. Kh8 {[%clk 0:00:04.2]} 80... Kf6 {[%clk
0:00:04.8]} 81. b5 {[%clk 0:00:05.1]} 81... Qg7# {[%clk 0:00:04.9]} 0-1